fUSD/lending_fUSD_20250923
["ID","MTS","AMOUNT","RATE_DAILY","PERIOD"]
[387180864,1758612645420,-500.0,0.00022466,2]
[387180865,1758612645429,-500.0,0.00022466,2]
[387180866,1758612645438,-2051.0,0.00022466,2]
[387180867,1758612645447,-500.0,0.00022466,2]
[387180868,1758612645457,-500.0,0.00022482,2]
[387180869,1758612645466,-500.0,0.00022482,2]
[387180870,1758612645475,-1174.5888615,0.00022532,2]
[387180871,1758612645485,-1000.0,0.0002256,2]
[387180872,1758612645496,-7761.96722348,0.00022622,2]
[387180873,1758612645505,-169.07,0.00022643,2]
[387180874,1758612645515,-600.0,0.00022658,2]
[387180875,1758612645524,-200.0,0.00022676,2]
[387180876,1758612645533,-500.0,0.00022676,2]
[387180877,1758612645542,-500.0,0.00022676,2]
[387180878,1758612645551,-500.0,0.00022676,2]
[387180879,1758612645563,-501.98399225,0.00022676,2]
[387180880,1758612645573,-817.0,0.00022691,2]
[387180881,1758612645583,-817.0,0.00022691,2]
[387180882,1758612645593,-817.0,0.00022691,2]
[387180883,1758612645603,-817.0,0.00022691,2]
[387180884,1758612645612,-817.0,0.00022691,2]
[387180885,1758612645621,-166.37060887,0.00022691,2]
[387180886,1758612645630,-500.0,0.00022721,2]
[387180887,1758612645639,-156.89714162,0.00022721,2]
[387180888,1758612645649,-500.92325536,0.00022721,2]
[387180889,1758612645658,-534.07223647,0.00022721,2]
[387180890,1758612645667,-500.0,0.00022721,2]
[387180891,1758612645676,-501.74024584,0.00022721,2]
[387180892,1758612645686,-500.0,0.00022721,2]
[387180893,1758612645695,-500.0,0.00022721,2]
[387180894,1758612645704,-500.47935389,0.00022721,2]
[387180895,1758612645713,-514.67079359,0.00022721,2]
[387180896,1758612645723,-500.0,0.00022721,2]
[387180897,1758612645733,-500.0,0.00022721,2]
[387180898,1758612645742,-206.83664962,0.00022721,2]
[387180899,1758612645752,-150.0,0.00022721,2]
[387180900,1758612645762,-500.0,0.0002274,2]
[387180901,1758612645771,-579.0,0.0002274,2]
[387180902,1758612645780,-500.0,0.0002274,2]
[387180904,1758612645791,-2051.0,0.0002274,2]
[387180905,1758612645800,-500.0,0.0002274,2]
[387180906,1758612645809,-538.49,0.00022776,2]
[387180907,1758612645819,-472.88,0.00022776,2]
[387180908,1758612645828,-472.88,0.00022776,2]
[387180909,1758612645837,-805.72,0.00022776,2]
[387180910,1758612645847,-212.89,0.00022804,2]
[387180911,1758612645857,-200.0,0.00022879,2]
[387180912,1758612645866,-200.0,0.0002288,2]
[387180913,1758612645875,-200.0,0.0002288,2]
[387180914,1758612645885,-150.0,0.00022882,4]
[387180915,1758612645894,-150.0,0.00022882,4]
[387180916,1758612645903,-150.0,0.00022882,4]
[387180917,1758612645912,-150.00000001,0.00022882,4]
[387180918,1758612645921,-150.0,0.00022882,4]
[387180919,1758612645931,-150.0,0.00022882,4]
[387180920,1758612645940,-150.00000001,0.00022882,4]
[387180921,1758612645949,-150.0,0.00022882,4]
[387180922,1758612645958,-150.0,0.00022882,4]
[387180923,1758612645968,-150.0,0.00022882,4]
[387180924,1758612645977,-150.00000001,0.00022882,4]
[387180926,1758612645987,-150.0,0.00022882,4]
[387180927,1758612645999,-1000.0,0.00022899,2]
[387180928,1758612646009,-1000.0,0.00022899,2]
[387180929,1758612646018,-1000.0,0.00022949,2]
[387180930,1758612646027,-1000.0,0.00022949,2]
[387180931,1758612646037,-1000.0,0.00022949,2]
[387180932,1758612646046,-1000.0,0.00022949,2]
[387180933,1758612646056,-1000.0,0.00022949,2]
[387180934,1758612646065,-1000.0,0.00022949,2]
[387180935,1758612646076,-307.8635,0.00022949,2]
[387180936,1758612646085,-212.0,0.0002295,2]
[387180937,1758612646095,-562.92,0.00023,2]
[387180938,1758612646104,-500.0,0.00023014,2]
[387180939,1758612646114,-579.0,0.00023014,2]
[387180940,1758612646123,-500.0,0.00023014,2]
[387180941,1758612646132,-2051.0,0.00023014,2]
[387180942,1758612646142,-500.0,0.00023014,2]
[387180943,1758612646151,-607.0,0.00023014,7]
[387180944,1758612646160,-1000.0,0.0002303,2]
[387180945,1758612646170,-1000.0,0.0002303,2]
[387180946,1758612646179,-150.58926479,0.0002303,2]
[387180947,1758612646188,-343382.85626105,0.00023037,2]
[387180948,1758612646197,-343382.85626105,0.00023039,2]
[387180949,1758612646207,-150.58926479,0.00023049,2]
[387180950,1758612646215,-2591.0552046,0.0002305,2]
[387180952,1758612646926,-1627.80843545,0.00020908,2]
[387180953,1758612646939,-472.86339972,0.00020908,2]
[387180954,1758612646951,-372.34049029,0.00020908,2]
[387180955,1758612646963,-393.66239999,0.00020908,2]
[387180956,1758612646991,-539.29827455,0.00020908,2]
[387180957,1758612647003,-340791.80105645,0.0002305,2]
[387180958,1758612647012,-196.44221555,0.00023067,2]
[387180959,1758612647022,-150.58926479,0.00023071,2]
[387180960,1758612647031,-183.22492003,0.00023073,2]
[387180961,1758612647042,-343382.85626105,0.00023076,2]
[387180962,1758612647051,-241.24339659,0.00023076,2]
[387180963,1758612647060,-753.55477123,0.00023077,2]
[387180964,1758612647070,-183.22492003,0.0002308,2]
[387180965,1758612647079,-1594.69867791,0.00023085,2]
[387180966,1758612647089,-150.58926479,0.00023086,2]
[387180967,1758612647099,-114373.04248523,0.00023088,2]
[387180968,1758612647151,-3149.2911594,0.00023088,2]
[387180969,1758612647167,-958.3021922,0.00023088,2]
[387180970,1758612647218,-2701.8,0.00023088,2]
[387180971,1758612647803,-151.0,0.0002,2]
[387180972,1758612647814,-151.0,0.0002,2]
[387180973,1758612647824,-151.0,0.0002,2]
[387180974,1758612647834,-151.0,0.0002,2]
[387180975,1758612647844,-151.0,0.00020482,2]
[387180976,1758612647854,-151.0,0.00020482,2]
[387180977,1758612647864,-151.0,0.00020482,2]
[387180978,1758612647874,-151.0,0.0002137,2]
[387180979,1758612647884,-151.0,0.0002137,2]
[387180980,1758612647894,-151.0,0.00022002,7]
[387180981,1758612647904,-127616.50374553,0.00023088,2]
[387180982,1758612648757,-287.233985,0.0002,2]
[387180983,1758612648768,-151.0,0.0002137,2]
[387180984,1758612648779,-251.09404911,0.00021414,2]
[387180985,1758612648791,-151.0,0.00022002,7]
[387180986,1758612648802,-151.0,0.00022172,7]
[387180987,1758612648813,-2008.67196589,0.00023088,2]
[387180988,1758612648830,-2867.8201766,0.00023088,2]
[387180989,1758612648854,-727.29069098,0.00023088,2]
[387181006,1758613101109,10000.0,0.00030137,120]
[387181007,1758613170742,10000.0,0.00030137,120]
[387181008,1758613183708,10000.0,0.00030137,120]
[387181109,1758613514343,165.36,0.0001058,2]
[387181119,1758613565797,270.09236194,0.00010527,2]
[387181174,1758613832259,-270.50956464,0.0001973,2]
[387181175,1758613832269,-375.2235296,0.0001975,2]
[387181176,1758613832311,-1424.7764704,0.0001975,2]
[387181177,1758613832321,-250.0,0.0001985,2]
[387181178,1758613832332,-2827.71877351,0.000199,2]
[387181179,1758613832343,-250.0,0.00019927,2]
[387181180,1758613832353,-1200.0,0.00019978,2]
[387181181,1758613832362,-300.0,0.00019978,2]
[387181182,1758613832372,-197.92478591,0.00019979,2]
[387181183,1758613832381,-500.0,0.00019979,2]
[387181184,1758613832391,-500.0,0.00019979,2]
[387181185,1758613832401,-343.14707635,0.00019979,2]
[387181186,1758613832411,-500.0,0.00019979,2]
[387181187,1758613832421,-500.0,0.00019979,2]
[387181188,1758613832431,-500.0,0.00019979,2]
[387181189,1758613832441,-500.0,0.00019979,2]
[387181190,1758613832451,-229.26372804,0.00019979,2]
[387181191,1758613832460,-500.0,0.00019979,2]
[387181192,1758613832470,-500.0,0.00019979,2]
[387181193,1758613832480,-315.83564404,0.00019979,2]
[387181194,1758613832489,-500.0,0.00019979,2]
[387181195,1758613832499,-500.0,0.00019979,2]
[387181196,1758613832508,-500.0,0.00019979,2]
[387181197,1758613832518,-500.0,0.00019979,2]
[387181198,1758613832527,-500.0,0.00019979,2]
[387181199,1758613832537,-500.0,0.00019979,2]
[387181200,1758613832546,-66.34628505,0.00019979,2]
[387181203,1758613832975,-433.65371495,0.00019979,2]
[387181204,1758613832985,-400.09542056,0.0002,7]
[387181205,1758613832996,-150.57,0.0002,2]
[387181206,1758613833006,-151.45,0.0002,2]
[387181207,1758613833015,-150.73,0.0002,2]
[387181208,1758613833025,-152.59,0.0002,2]
[387181209,1758613833035,-150.63,0.00020001,2]
[387181210,1758613833044,-2.21046996,0.00020001,2]
[387181211,1758613833066,-149.59953004,0.00020001,2]
[387181212,1758613833076,-151.69,0.00020001,2]
[387181213,1758613833087,-107.79022906,0.00020001,2]
[387181214,1758613833111,-42.32977094,0.00020001,2]
[387181215,1758613833120,-150.13,0.00020005,2]
[387181216,1758613833130,-151.45,0.00020019,2]
[387181217,1758613833145,-152.39,0.00020019,2]
[387181218,1758613833155,-152.36,0.00020075,2]
[387181219,1758613833164,-338.02365706,0.00020605,2]
[387181220,1758613833174,-516.64379166,0.00020821,2]
[387181221,1758613833184,-832.09234546,0.00020989,2]
[387181222,1758613833193,-666.0,0.00020995,3]
[387181223,1758613833203,-2786.3,0.000211,2]
[387181224,1758613833214,-500.0,0.00021123,2]
[387181225,1758613833223,-322.6107,0.00021123,2]
[387181226,1758613833233,-500.0,0.00021123,2]
[387181227,1758613833243,-500.0,0.00021123,2]
[387181228,1758613833253,-500.0,0.00021123,2]
[387181229,1758613833263,-500.0,0.00021123,2]
[387181230,1758613833273,-500.0,0.00021123,2]
[387181231,1758613833283,-608.29155094,0.00021123,2]
[387181232,1758613833292,-500.0,0.00021123,2]
[387181233,1758613833302,-500.0,0.00021123,2]
[387181234,1758613833312,-500.0,0.00021123,2]
[387181235,1758613833322,-500.0,0.00021123,2]
[387181236,1758613833332,-500.0,0.00021123,2]
[387181237,1758613833343,-500.0,0.00021123,2]
[387181238,1758613833352,-500.0,0.00021123,2]
[387181239,1758613833362,-500.0,0.00021123,2]
[387181240,1758613833371,-500.0,0.00021123,2]
[387181241,1758613833381,-500.0,0.00021123,2]
[387181242,1758613833391,-500.0,0.00021123,2]
[387181243,1758613833401,-500.0,0.00021123,2]
[387181244,1758613833411,-500.0,0.00021123,2]
[387181245,1758613833421,-500.0,0.00021123,2]
[387181246,1758613833431,-200.0,0.00021128,2]
[387181247,1758613833441,-3394.0,0.00021136,2]
[387181248,1758613833450,-642.641,0.00021136,2]
[387181249,1758613833460,-2042.0,0.00021136,2]
[387181250,1758613833470,-786.0,0.00021136,2]
[387181251,1758613833480,-569.0,0.00021136,2]
[387181252,1758613833489,-1582.0,0.00021136,2]
[387181253,1758613833499,-602.0,0.00021136,2]
[387181254,1758613833508,-1305.0,0.00021136,2]
[387181255,1758613833517,-4231.0,0.00021136,2]
[387181256,1758613833527,-1179.0,0.00021136,2]
[387181257,1758613833536,-173.96709873,0.00021136,2]
[387181259,1758613838204,-500.0,0.00019899,2]
[387181260,1758613838214,-257.31507156,0.00019899,2]
[387181261,1758613838225,-155.51043009,0.00021135,2]
[387181262,1758613838235,-524.09933819,0.00021135,2]
[387181263,1758613838244,-725.03290127,0.00021136,2]
[387181264,1758613838254,-814.0,0.00021136,2]
[387181265,1758613838263,-1942.84225889,0.00021136,2]
[387181266,1758613838274,-2234.15774111,0.00021136,2]
[387181267,1758613838284,-6827.64225891,0.00021136,2]
[387181268,1758613838300,-12066.35774109,0.00021136,2]
[387181269,1758613838311,-727.0,0.00021136,2]
[387181270,1758613838320,-4606.0,0.00021136,2]
[387181271,1758613838329,-400.0,0.00021201,2]
[387181272,1758613838339,-338.02365706,0.00021201,2]
[387181273,1758613838352,-561.17,0.00021202,2]
[387181274,1758613838361,-165.57,0.00021213,2]
[387181275,1758613838371,-1000.0,0.00021256,2]
[387181276,1758613838381,-161.62,0.00021414,2]
[387181277,1758613838391,-500.0,0.000215,2]
[387181278,1758613838400,-1000.0,0.00021549,2]
[387181279,1758613838409,-1050.0,0.000216,2]
[387181280,1758613838419,-168.0,0.00021709,2]
[387181281,1758613838429,-250.0,0.0002178,2]
[387181282,1758613838439,-1680.0,0.00021859,2]
[387181283,1758613838449,-200.06384604,0.00021918,2]
[387181284,1758613838459,-1152.45,0.00021945,30]
[387181285,1758613838468,-464.0,0.00022,2]
[387181286,1758613838478,-199.0,0.00022,2]
[387181287,1758613838487,-699.44,0.00022,2]
[387181288,1758613838497,-500.0,0.00022,2]
[387181289,1758613838507,-4403.67,0.00022,2]
[387181290,1758613838516,-600.0,0.0002211,2]
[387181291,1758613838526,-807.902,0.00022172,2]
[387181292,1758613838535,-178.778,0.00022172,2]
[387181293,1758613838545,-168.0,0.00022177,2]
[387181294,1758613838555,-464.0,0.00022192,7]
[387181295,1758613838564,-168.0,0.00022306,2]
[387181296,1758613838573,-151.68,0.00022353,2]
[387181297,1758613838583,-1000.0,0.00022357,2]
[387181298,1758613838593,-168.0,0.00022373,2]
[387181299,1758613838603,-334.5472959,0.00022492,2]
[387181300,1758613838612,-500.0,0.000225,2]
[387181301,1758613838622,-600.0,0.00022658,2]
[387181302,1758613838632,-1450.00040484,0.00022695,2]
[387181304,1758613838642,-500.0,0.00022717,2]
[387181306,1758613838652,-150.0,0.0002278,2]
[387181307,1758613838661,-617.62203528,0.00022832,2]
[387181308,1758613838671,-9066.881514,0.0002286,2]
[387181309,1758613838681,-150.98358,0.0002286,2]
[387181310,1758613838691,-168.0,0.00022881,2]
[387181311,1758613838701,-168.0,0.00022952,2]
[387181312,1758613838711,-170.0,0.00023,7]
[387181313,1758613838720,-500.0,0.00023,2]
[387181314,1758613838730,-464.0,0.00023014,7]
[387181315,1758613838739,-150.0,0.00023014,2]
[387181316,1758613838749,-150.0,0.00023014,2]
[387181317,1758613838758,-150.0,0.00023014,2]
[387181318,1758613838767,-150.0,0.00023014,2]
[387181319,1758613838777,-150.0,0.00023014,2]
[387181320,1758613838787,-150.0,0.00023014,2]
[387181321,1758613838797,-152.97299391,0.00023014,2]
[387181323,1758613838807,-150.0,0.00023014,2]
[387181324,1758613838816,-150.0,0.00023014,2]
[387181325,1758613838825,-150.0,0.00023014,2]
[387181326,1758613838835,-150.0,0.00023014,2]
[387181327,1758613838845,-150.0,0.00023014,2]
[387181328,1758613838855,-150.0,0.00023014,2]
[387181329,1758613838864,-150.0,0.00023014,2]
[387181330,1758613838874,-150.0,0.00023014,2]
[387181331,1758613838884,-150.0,0.00023014,2]
[387181332,1758613838894,-150.0,0.00023014,2]
[387181333,1758613838903,-150.0,0.00023014,2]
[387181334,1758613838913,-150.0,0.00023014,2]
[387181335,1758613838922,-153.23903867,0.00023014,2]
[387181336,1758613838932,-500.0,0.00023014,2]
[387181337,1758613838941,-1026.0,0.00023014,2]
[387181338,1758613838952,-500.0,0.00023014,2]
[387181340,1758613838962,-150.0,0.00023014,2]
[387181341,1758613838971,-152.22357446,0.00023014,2]
[387181342,1758613838981,-150.0,0.00023014,2]
[387181343,1758613838990,-150.0,0.00023014,2]
[387181344,1758613839000,-150.0,0.00023014,2]
[387181345,1758613839010,-150.0,0.00023014,2]
[387181346,1758613839021,-500.0,0.00023014,2]
[387181347,1758613839031,-1245.23727776,0.00023015,2]
[387181348,1758613839040,-24984.07853959,0.00023023,2]
[387181349,1758613839053,-999.92,0.00023023,2]
[387181350,1758613840206,-383.74910156,0.00023023,2]
[387181351,1758613840392,-466.6472879,0.00023023,2]
[387181352,1758613840537,-1132.1489999,0.00023023,2]
[387181353,1758613840550,-3008.7,0.00023023,2]
[387181354,1758613840681,-327.84001672,0.00023023,2]
[387181355,1758613840694,-6336.56521284,0.00023023,2]
[387181356,1758613840706,-233.62069793,0.00023023,2]
[387181357,1758613840716,-1716.37930207,0.00023025,2]
[387181366,1758613843622,-8087.02433954,0.00023025,2]
[387181367,1758613843631,-222.09044612,0.00023031,2]
[387181368,1758613843641,-1245.23727776,0.00023032,2]
[387181369,1758613843651,-1361.03480829,0.00023032,2]
[387181370,1758613843661,-222.09044612,0.00023034,2]
[387181371,1758613843671,-1245.23727776,0.00023035,2]
[387181372,1758613843681,-1245.23727776,0.00023037,2]
[387181373,1758613843691,-1312.53071126,0.00023046,2]
[387181375,1758613843701,-1361.03480829,0.00023046,2]
[387181376,1758613843710,-262.0862007,0.00023048,2]
[387181377,1758613843720,-37873.26985644,0.00023056,2]
[387181378,1758613843730,-37873.26985644,0.00023057,2]
[387181379,1758613843742,-1245.23727776,0.00023064,2]
[387181381,1758613843752,-9803.40364161,0.00023067,2]
[387181382,1758613843763,-1361.03480829,0.00023071,2]
[387181384,1758613843773,-206.82883212,0.00023075,2]
[387181385,1758613843783,-206.82883212,0.00023075,2]
[387181386,1758613843792,-1312.53071126,0.00023084,2]
[387181387,1758613843802,-88980.13384522,0.00023088,2]
[387181389,1758613843811,-200.0,0.00023088,2]
[387181390,1758613843821,-198.84003728,0.00023088,2]
[387181391,1758613843832,-206.82883212,0.00023092,2]
[387181392,1758613843843,-1594.69867791,0.00023092,2]
[387181393,1758613843855,-196.44221555,0.00023094,2]
[387181394,1758613843866,-193.3780338,0.00023095,2]
[387181396,1758613843876,-393.48485353,0.00023096,2]
[387181397,1758613843887,-1594.69867791,0.00023096,2]
[387181398,1758613843897,-193.3780338,0.00023097,2]
[387181399,1758613843907,-241.24339659,0.000231,2]
[387181400,1758613843918,-1361.03480829,0.00023101,2]
[387181401,1758613843929,-185.1211535,0.00023101,2]
[387181402,1758613843939,-1594.69867791,0.00023103,2]
[387181403,1758613843949,-1214.03412019,0.00023104,2]
[387181404,1758613843958,-1312.53071126,0.00023105,2]
[387181406,1758613843967,-37873.26985644,0.00023106,2]
[387181408,1758613843977,-753.55477123,0.00023106,2]
[387181410,1758613843986,-59955.95965682,0.00023107,2]
[387181412,1758613843996,-1245.23727776,0.0002311,2]
[387181413,1758613844007,-193.3780338,0.0002311,2]
[387181414,1758613844017,-196.44221555,0.00023111,2]
[387181415,1758613844027,-9803.40364161,0.00023111,2]
[387181416,1758613844037,-222.09044612,0.00023112,2]
[387181417,1758613844047,-753.55477123,0.00023112,2]
[387181418,1758613844057,-193.3780338,0.00023116,2]
[387181419,1758613844067,-3104.78688941,0.0002312,2]
[387181420,1758613844076,-159.68349084,0.0002312,2]
[387181421,1758613844086,-221.94350171,0.0002312,2]
[387181422,1758613844095,-183.22492003,0.00023121,2]
[387181423,1758613844107,-180.13492198,0.00023122,2]
[387181424,1758613844117,-1214.03412019,0.00023124,2]
[387181425,1758613844130,-393.48485353,0.00023124,2]
[387181426,1758613844140,-1361.03480829,0.00023124,2]
[387181427,1758613844154,-59955.95965682,0.00023125,2]
[387181428,1758613844164,-753.55477123,0.00023125,2]
[387181429,1758613844174,-37873.26985644,0.00023127,2]
[387181430,1758613844184,-19837.81022903,0.00023128,2]
[387181431,1758613844200,-18035.45962741,0.00023128,2]
[387181432,1758613844210,-185.1211535,0.0002313,2]
[387181433,1758613844222,-241.24339659,0.0002313,2]
[387181434,1758613844234,-1312.53071126,0.0002313,2]
[387181435,1758613844244,-59955.95965682,0.0002313,2]
[387181436,1758613844253,-206.82883212,0.00023133,2]
[387181437,1758613844263,-206.82883212,0.00023133,2]
[387181438,1758613844272,-9803.40364161,0.00023133,2]
[387181439,1758613844282,-206.82883212,0.00023133,2]
[387181440,1758613844292,-150.58926479,0.00023133,2]
[387181441,1758613844301,-241.24339659,0.00023134,2]
[387181442,1758613844310,-206.82883212,0.00023137,2]
[387181443,1758613844320,-180.13492198,0.0002314,2]
[387181444,1758613844329,-9803.40364161,0.0002314,2]
[387181445,1758613844339,-150.71211728,0.0002314,2]
[387181446,1758613844349,-185.1211535,0.00023141,2]
[387181447,1758613844359,-222.09044612,0.00023142,2]
[387181449,1758613844368,-241.24339659,0.00023142,2]
[387181450,1758613844378,-183.22492003,0.00023143,2]
[387181451,1758613844387,-421.82208108,0.00023143,2]
[387181452,1758613844399,-335.74,0.00023143,2]
[387181453,1758613844410,-554.96863018,0.00023143,2]
[387181454,1758613844420,-150.58926479,0.00023145,2]
[387181455,1758613844430,-150.71211728,0.00023147,2]
[387181456,1758613844439,-753.55477123,0.00023149,2]
[387181457,1758613844448,-1214.03412019,0.00023152,2]
[387181458,1758613844458,-150.71211728,0.00023152,2]
[387181459,1758613844468,-37873.26985644,0.00023155,2]
[387181460,1758613844482,-753.55477123,0.00023157,2]
[387181461,1758613844492,-196.44221555,0.00023158,2]
[387181462,1758613844502,-185.1211535,0.00023162,2]
[387181463,1758613844511,-1214.03412019,0.00023163,2]
[387181464,1758613844521,-1214.03412019,0.00023164,2]
[387181465,1758613844531,-150.71211728,0.00023165,2]
[387181466,1758613844540,-150.71211728,0.00023165,2]
[387181467,1758613844550,-1000.0,0.00023165,2]
[387181468,1758613844560,-1361.03480829,0.00023165,2]
[387181469,1758613844569,-183.22492003,0.00023168,2]
[387181470,1758613844580,-3048.86817973,0.00023171,2]
[387181471,1758613844604,-29205.73057235,0.00023171,2]
[387181472,1758613844620,-170633.15874521,0.00023171,2]
[387181473,1758613844654,-2821.29556633,0.00023171,2]
[387181474,1758613844666,-5302.5439683,0.00023171,2]
[387181476,1758613846259,-384.50318454,0.00023014,2]
[387181477,1758613846396,-115.49681546,0.00023014,2]
[387181478,1758613846407,-791.94268354,0.00023171,2]
[387181479,1758613846419,-2562.0,0.00023171,2]
[387181480,1758613846507,-3660.60545291,0.00023171,2]
[387181481,1758613846519,-60081.00001,0.00023171,2]
[387181506,1758613863067,160.0,0.000301,120]
[387181695,1758614468987,152.03,0.00010591,2]
[387181761,1758614805784,37770.20440728,0.000195,5]
[387181766,1758614832449,16022.32595781,0.0002,30]
[387181767,1758614832478,70000.0,0.0002,30]
[387181791,1758615032675,-604.203829,0.00019827,2]
[387181812,1758615033188,-250.0,0.00019927,2]
[387181815,1758615033199,-1582.58728591,0.00019977,2]
[387181818,1758615033209,-152.04,0.00020077,2]
[387181821,1758615033219,-240.0,0.00020176,2]
[387181823,1758615033229,-1200.0,0.00020176,2]
[387181825,1758615033239,-602.0,0.00020177,2]
[387181827,1758615033249,-814.0,0.00020177,2]
[387181829,1758615033259,-18894.0,0.00020177,2]
[387181831,1758615033269,-727.0,0.00020177,2]
[387181833,1758615033279,-4177.0,0.00020177,2]
[387181835,1758615033289,-14975.30084975,0.00020797,2]
[387181837,1758615033299,-500.0,0.000209,2]
[387181839,1758615033308,-516.64379166,0.00021096,2]
[387181841,1758615033318,-2851.66,0.000211,2]
[387181843,1758615033328,-500.0,0.00021131,2]
[387181845,1758615033337,-500.0,0.00021131,2]
[387181847,1758615033347,-242.16532158,0.00021131,2]
[387181849,1758615033357,-500.0,0.00021131,2]
[387181851,1758615033367,-500.0,0.00021131,2]
[387181853,1758615033377,-500.0,0.00021131,2]
[387181855,1758615033386,-500.0,0.00021131,2]
[387181857,1758615033395,-500.0,0.00021131,2]
[387181859,1758615033405,-451.73890546,0.00021131,2]
[387181861,1758615033415,-1770.28951811,0.00021131,2]
[387181863,1758615033427,-322.6107,0.00021131,2]
[387181864,1758615033437,-3394.0,0.00021144,2]
[387181865,1758615033447,-786.0,0.00021144,2]
[387181866,1758615033458,-2042.0,0.00021144,2]
[387181867,1758615033468,-1305.0,0.00021144,2]
[387181868,1758615033478,-569.0,0.00021144,2]
[387181869,1758615033488,-1582.0,0.00021144,2]
[387181870,1758615033499,-152.03,0.00021182,2]
[387181871,1758615033509,-250.0,0.0002139,2]
[387181872,1758615033520,-500.0,0.000214,2]
[387181873,1758615033533,-200.0,0.00021427,2]
[387181874,1758615033543,-1052.51,0.00021428,2]
[387181875,1758615033552,-5000.0,0.00021448,2]
[387181876,1758615033562,-200.0,0.00021454,2]
[387181877,1758615033572,-150.001637,0.00021457,2]
[387181878,1758615033585,-367.12347585,0.00021457,2]
[387181879,1758615033595,-500.0,0.00021656,2]
[387181880,1758615033605,-1000.0,0.00021662,2]
[387181881,1758615033616,-738.77999823,0.00021673,2]
[387181882,1758615033627,-280.58,0.00021685,2]
[387181883,1758615033637,-1000.0,0.00021726,2]
[387181884,1758615033647,-217.63,0.00021747,2]
[387181885,1758615033658,-164.1,0.00021802,2]
[387181886,1758615033668,-250.0,0.0002181,2]
[387181887,1758615033679,-250.0,0.00021864,2]
[387181888,1758615033689,-500.0,0.000219,2]
[387181889,1758615033700,-5000.0,0.00021918,2]
[387181890,1758615033710,-3240.73537991,0.0002193,2]
[387181891,1758615033720,-1056.41,0.00021958,30]
[387181892,1758615033730,-416.0,0.00022,2]
[387181893,1758615033740,-170.0,0.00022,2]
[387181894,1758615033750,-621.72,0.00022,2]
[387181895,1758615033760,-1680.0,0.00022071,2]
[387181896,1758615033770,-268.61599073,0.00022095,2]
[387181897,1758615033780,-600.0,0.0002211,2]
[387181898,1758615033791,-168.0,0.00022151,2]
[387181899,1758615033802,-500.0,0.00022171,7]
[387181900,1758615033812,-500.0,0.00022171,7]
[387181901,1758615033821,-500.0,0.00022171,7]
[387181902,1758615033832,-500.0,0.00022171,7]
[387181903,1758615033842,-500.0,0.00022171,7]
[387181904,1758615033852,-500.0,0.00022171,7]
[387181905,1758615033862,-500.0,0.00022171,7]
[387181906,1758615033873,-500.0,0.00022171,7]
[387181907,1758615033883,-500.0,0.00022171,7]
[387181908,1758615033892,-500.0,0.00022171,7]
[387181909,1758615033903,-505.59,0.00022171,7]
[387181910,1758615033913,-500.0,0.00022171,7]
[387181911,1758615033923,-500.0,0.00022171,7]
[387181912,1758615033934,-500.0,0.00022171,7]
[387181913,1758615033944,-500.0,0.00022171,7]
[387181914,1758615033954,-500.0,0.00022171,7]
[387181915,1758615033964,-500.0,0.00022171,7]
[387181916,1758615033974,-500.0,0.00022171,7]
[387181917,1758615033984,-500.0,0.00022171,7]
[387181918,1758615033994,-302.21515528,0.00022171,7]
[387181924,1758615038547,-197.78484472,0.00022171,7]
[387181925,1758615038557,-500.0,0.00022171,7]
[387181926,1758615038567,-500.0,0.00022171,7]
[387181927,1758615038577,-500.0,0.00022171,7]